fUST/lending_fUST_20240902
["ID","MTS","AMOUNT","RATE_DAILY","PERIOD"]
[336977602,1725271839388,-500.0,0.00024657,2]
[336977603,1725271839398,-500.0,0.00024657,2]
[336977604,1725271839407,-278.91177669,0.00024657,2]
[336977605,1725271839417,-500.0,0.00024657,2]
[336977606,1725271839427,-500.0,0.00024657,2]
[336977607,1725271839436,-500.0,0.00024657,2]
[336977608,1725271839445,-500.0,0.00024657,2]
[336977609,1725271839455,-500.0,0.00024657,2]
[336977610,1725271839464,-500.0,0.00024657,2]
[336977611,1725271839480,-500.0,0.00024657,2]
[336977612,1725271839489,-500.0,0.00024657,2]
[336977613,1725271839499,-500.0,0.00024657,2]
[336977614,1725271839508,-500.0,0.00024657,2]
[336977615,1725271839518,-500.0,0.00024657,2]
[336977616,1725271839528,-500.0,0.00024657,2]
[336977617,1725271839538,-500.0,0.00024657,2]
[336977618,1725271839547,-500.0,0.00024657,2]
[336977619,1725271839557,-500.0,0.00024657,2]
[336977620,1725271839566,-500.0,0.00024657,2]
[336977621,1725271839575,-294.70936262,0.00024657,2]
[336977622,1725271839585,-500.0,0.00024657,2]
[336977623,1725271839595,-500.0,0.00024657,2]
[336977624,1725271839606,-1240.32,0.00024657,2]
[336977625,1725271839616,-500.0,0.00024657,2]
[336977626,1725271839625,-500.0,0.00024657,2]
[336977627,1725271839635,-500.0,0.00024657,2]
[336977628,1725271839644,-505.22330456,0.00024657,2]
[336977629,1725271839654,-500.0,0.00024657,2]
[336977630,1725271839664,-500.0,0.00024657,2]
[336977631,1725271839673,-500.0,0.00024657,2]
[336977632,1725271839682,-500.0,0.00024657,2]
[336977633,1725271839692,-500.0,0.00024657,2]
[336977634,1725271839702,-500.0,0.00024657,2]
[336977635,1725271839712,-500.0,0.00024657,2]
[336977636,1725271839725,-500.82338603,0.00024657,2]
[336977637,1725271839735,-496.45500936,0.00024657,2]
[336977638,1725271839744,-504.81597529,0.00024657,2]
[336977639,1725271839755,-500.0,0.00024657,2]
[336977640,1725271839764,-500.0,0.00024657,2]
[336977641,1725271839774,-500.0,0.00024657,2]
[336977642,1725271839783,-500.0,0.00024657,2]
[336977643,1725271839792,-500.0,0.00024657,2]
[336977644,1725271839803,-500.0,0.00024657,2]
[336977645,1725271839813,-500.0,0.00024657,2]
[336977646,1725271839823,-500.0,0.00024657,2]
[336977647,1725271839835,-396.49063788,0.00024657,2]
[336977648,1725271839845,-500.0,0.00024657,2]
[336977649,1725271839854,-854.67,0.00024657,2]
[336977650,1725271839864,-500.0,0.00024657,2]
[336977651,1725271839873,-270.84558866,0.00024657,2]
[336977652,1725271839884,-191.55075328,0.00024657,2]
[336977653,1725271839894,-500.0,0.00024657,2]
[336977654,1725271839904,-500.0,0.00024657,2]
[336977655,1725271839915,-510.17,0.00024657,2]
[336977656,1725271839924,-500.0,0.00024657,2]
[336977657,1725271839935,-500.0,0.00024657,2]
[336977658,1725271839945,-206.73513008,0.00024657,2]
[336977659,1725271839955,-500.0,0.00024657,2]
[336977660,1725271839964,-500.0,0.00024657,2]
[336977661,1725271839975,-500.0,0.00024657,2]
[336977662,1725271839985,-500.0,0.00024657,2]
[336977663,1725271839994,-559.99,0.00024657,2]
[336977664,1725271840003,-500.0,0.00024657,2]
[336977665,1725271840015,-613.18,0.00024657,2]
[336977666,1725271840026,-500.0,0.00024657,2]
[336977667,1725271840037,-735.99,0.00024657,2]
[336977668,1725271840048,-500.0,0.00024657,2]
[336977669,1725271840060,-500.0,0.00024657,2]
[336977670,1725271840070,-500.0,0.00024657,2]
[336977671,1725271840079,-500.14791411,0.00024657,2]
[336977672,1725271840089,-958.07,0.00024657,2]
[336977673,1725271840098,-500.0,0.00024657,2]
[336977674,1725271840108,-500.0,0.00024657,2]
[336977675,1725271840117,-500.0,0.00024657,2]
[336977676,1725271840127,-500.0,0.00024657,2]
[336977677,1725271840136,-500.0,0.00024657,2]
[336977678,1725271840146,-500.0,0.00024657,2]
[336977679,1725271840155,-500.0,0.00024657,2]
[336977680,1725271840164,-500.0,0.00024657,2]
[336977681,1725271840173,-652.66,0.00024657,2]
[336977682,1725271840182,-500.0,0.00024657,2]
[336977683,1725271840191,-500.0,0.00024657,2]
[336977684,1725271840201,-500.0,0.00024657,2]
[336977685,1725271840210,-500.0,0.00024657,2]
[336977686,1725271840219,-500.0,0.00024657,2]
[336977687,1725271840230,-687.13,0.00024657,2]
[336977688,1725271840239,-500.0,0.00024657,2]
[336977689,1725271840248,-500.0,0.00024657,2]
[336977690,1725271840257,-500.0,0.00024657,2]
[336977691,1725271840266,-500.0,0.00024657,2]
[336977692,1725271840276,-500.0,0.00024657,2]
[336977693,1725271840285,-500.0,0.00024657,2]
[336977695,1725271840295,-500.0,0.00024657,2]
[336977696,1725271840304,-500.0,0.00024657,2]
[336977697,1725271840314,-500.0,0.00024657,2]
[336977698,1725271840323,-500.0,0.00024657,2]
[336977699,1725271840333,-500.0,0.00024657,2]
[336977700,1725271840342,-501.57384797,0.00024657,2]
[336977701,1725271840351,-500.0,0.00024657,2]
[336977702,1725271840361,-820.4,0.00024657,2]
[336977703,1725271840370,-500.0,0.00024657,2]
[336977704,1725271840379,-500.0,0.00024657,2]
[336977705,1725271840388,-500.0,0.00024657,2]
[336977706,1725271840398,-457.49400856,0.00024657,2]
[336977707,1725271840407,-500.0,0.00024657,2]
[336977709,1725271840417,-500.0,0.00024657,2]
[336977710,1725271840427,-608.5228033,0.00024657,2]
[336977713,1725271840438,-500.0,0.00024657,2]
[336977715,1725271840449,-500.0,0.00024657,2]
[336977717,1725271840460,-500.0,0.00024657,2]
[336977718,1725271840470,-526.35037879,0.00024657,2]
[336977720,1725271840480,-500.0,0.00024657,2]
[336977722,1725271840489,-904.48,0.00024657,2]
[336977724,1725271840498,-500.0,0.00024657,2]
[336977726,1725271840508,-500.0,0.00024657,2]
[336977728,1725271840517,-500.0,0.00024657,2]
[336977730,1725271840527,-500.0,0.00024657,2]
[336977732,1725271840536,-500.0,0.00024657,2]
[336977734,1725271840548,-500.0,0.00024657,2]
[336977736,1725271840558,-767.33,0.00024657,2]
[336977738,1725271840569,-500.0,0.00024657,2]
[336977740,1725271840578,-500.0,0.00024657,2]
[336977742,1725271840588,-500.0,0.00024657,2]
[336977744,1725271840598,-500.0,0.00024657,2]
[336977746,1725271840608,-500.0,0.00024657,2]
[336977748,1725271840618,-547.9,0.00024657,2]
[336977750,1725271840628,-500.0,0.00024657,2]
[336977752,1725271840638,-337.88855092,0.00024657,2]
[336977754,1725271840647,-1106.4,0.00024657,2]
[336977756,1725271840657,-500.0,0.00024657,2]
[336977757,1725271840666,-500.0,0.00024657,2]
[336977759,1725271840675,-1184.41,0.00024657,2]
[336977761,1725271840684,-500.0,0.00024657,2]
[336977763,1725271840693,-200.99711836,0.00024657,2]
[336977764,1725271840703,-500.0,0.00024657,2]
[336977766,1725271840712,-500.0,0.00024657,2]
[336977768,1725271840722,-366.98007961,0.00024657,2]
[336977771,1725271840732,-434.09901306,0.00024657,2]
[336977772,1725271840875,-1243.78,0.00024657,2]
[336977773,1725271840886,-500.0,0.00024657,2]
[336977774,1725271840895,-658.41,0.00024657,2]
[336977775,1725271840904,-500.0,0.00024657,2]
[336977776,1725271840916,-500.0,0.00024657,2]
[336977777,1725271840926,-897.51,0.00024657,2]
[336977778,1725271840935,-7063.99,0.00024657,2]
[336977779,1725271840946,-500.0,0.00024657,2]
[336977780,1725271840955,-500.0,0.00024657,2]
[336977781,1725271840965,-313.33289795,0.00024657,2]
[336977782,1725271841049,-186.66710205,0.00024657,2]
[336977783,1725271841059,-500.0,0.00024657,2]
[336977784,1725271841069,-998.27,0.00024657,2]
[336977785,1725271841078,-2854.58,0.00024657,2]
[336977786,1725271841088,-703.71,0.00024657,2]
[336977787,1725271841097,-500.0,0.00024657,2]
[336977788,1725271841107,-896.72,0.00024657,2]
[336977789,1725271841116,-1449.4,0.00024657,2]
[336977790,1725271841126,-824.72,0.00024657,2]
[336977791,1725271841135,-1580.34,0.00024657,2]
[336977792,1725271841145,-500.0,0.00024657,2]
[336977793,1725271841155,-500.0,0.00024657,2]
[336977794,1725271841164,-1013.0,0.00024657,2]
[336977795,1725271841174,-679.29,0.00024657,2]
[336977796,1725271841183,-500.0,0.00024657,2]
[336977797,1725271841192,-430.56748116,0.00024657,2]
[336977798,1725271841202,-500.0,0.00024657,2]
[336977799,1725271841211,-500.0,0.00024657,2]
[336977800,1725271841221,-603.95,0.00024657,2]
[336977801,1725271841234,-500.0,0.00024657,2]
[336977802,1725271841244,-679.97,0.00024657,2]
[336977803,1725271841254,-500.0,0.00024657,2]
[336977804,1725271841264,-1783.16,0.00024657,2]
[336977805,1725271841273,-500.0,0.00024657,2]
[336977806,1725271841283,-723.45,0.00024657,2]
[336977807,1725271841292,-848.54,0.00024657,2]
[336977808,1725271841301,-500.0,0.00024657,2]
[336977809,1725271841311,-500.0,0.00024657,2]
[336977810,1725271841321,-1218.02,0.00024657,2]
[336977811,1725271841330,-500.0,0.00024657,2]
[336977812,1725271841339,-505.12,0.00024657,2]
[336977813,1725271841348,-500.0,0.00024657,2]
[336977814,1725271841357,-500.0,0.00024657,2]
[336977815,1725271841367,-500.0,0.00024657,2]
[336977816,1725271841376,-599.58,0.00024657,2]
[336977817,1725271841386,-500.0,0.00024657,2]
[336977818,1725271841396,-500.0,0.00024657,2]
[336977819,1725271841405,-589.65,0.00024657,2]
[336977820,1725271841415,-500.0,0.00024657,2]
[336977821,1725271841425,-657.31,0.00024657,2]
[336977822,1725271841434,-500.0,0.00024657,2]
[336977823,1725271841443,-838.25,0.00024657,2]
[336977824,1725271841453,-500.0,0.00024657,2]
[336977825,1725271841463,-500.0,0.00024657,2]
[336977826,1725271841472,-508.0090939,0.00024657,2]
[336977827,1725271841490,-500.0,0.00024657,2]
[336977828,1725271841500,-500.0,0.00024657,2]
[336977829,1725271841509,-915.37,0.00024657,2]
[336977830,1725271841518,-692.02,0.00024657,2]
[336977831,1725271841527,-500.0,0.00024657,2]
[336977832,1725271841537,-500.0,0.00024657,2]
[336977833,1725271841546,-3883.9,0.00024657,2]
[336977834,1725271841556,-500.0,0.00024657,2]
[336977835,1725271841565,-4513.21,0.00024657,2]
[336977836,1725271841574,-856.22,0.00024657,2]
[336977837,1725271841584,-383.56486565,0.00024657,2]
[336977838,1725271841594,-887.89,0.00024657,2]
[336977839,1725271841603,-452.44250149,0.00024657,2]
[336977840,1725271841614,-606.59323964,0.00024657,2]
[336977841,1725271841623,-520.81082283,0.00024657,2]
[336977842,1725271841633,-1028.8,0.00024657,2]
[336977843,1725271841642,-714.97,0.00024657,2]
[336977844,1725271841652,-500.0,0.00024657,2]
[336977845,1725271841661,-1243.81,0.00024657,2]
[336977846,1725271841671,-500.0,0.00024657,2]
[336977847,1725271841680,-500.0,0.00024657,2]
[336977848,1725271841689,-500.0,0.00024657,2]
[336977849,1725271841700,-672.36,0.00024657,2]
[336977850,1725271841709,-1922.3,0.00024657,2]
[336977851,1725271841719,-1646.97,0.00024657,2]
[336977852,1725271841734,-500.0,0.00024657,2]
[336977853,1725271841745,-500.0,0.00024657,2]
[336977854,1725271841755,-500.0,0.00024657,2]
[336977855,1725271841764,-500.0,0.00024657,2]
[336977856,1725271841774,-654.76,0.00024657,2]
[336977857,1725271841784,-861.62,0.00024657,2]
[336977858,1725271841794,-1179.43,0.00024657,2]
[336977859,1725271841804,-565.23,0.00024657,2]
[336977860,1725271841813,-158.186282,0.00024657,2]
[336977861,1725271841824,-500.0,0.00024657,2]
[336977862,1725271841836,-541.78,0.00024657,2]
[336977863,1725271841846,-500.0,0.00024657,2]
[336977864,1725271841856,-500.0,0.00024657,2]
[336977865,1725271841866,-378.12025392,0.00024657,2]
[336977866,1725271841877,-500.0,0.00024657,2]
[336977867,1725271841887,-1315.79,0.00024657,2]
[336977868,1725271841897,-500.0,0.00024657,2]
[336977869,1725271841906,-7139.19,0.00024657,2]
[336977870,1725271841917,-4644.34004267,0.00024657,2]
[336977871,1725271841930,-501.98208771,0.00024657,2]
[336977878,1725271843596,-364.38170318,0.00024657,2]
[336977879,1725271843608,-1628.48616644,0.00024657,2]
[336977880,1725271843618,-7139.19,0.00024657,2]
[336977881,1725271843627,-513.38,0.00024657,2]
[336977882,1725271843637,-6268.71512879,0.00024657,2]
[336978010,1725271846595,-870.47487121,0.00024657,2]
[336978012,1725271846605,-1273.22143036,0.00024657,2]
[336978214,1725271922286,3069.48802238,0.0002377,2]
[336978215,1725271983798,191.0,0.00023769,10]
[336978216,1725272132220,191.255137,0.00014247,2]
[336978218,1725272153455,4652.579978,0.00024649,7]
[336978224,1725272642788,173.733675,0.00014247,2]
[336978228,1725272744153,-203.91931194,0.0002175,2]
[336978231,1725272836129,-574.06572386,0.0002175,2]
[336978232,1725272836150,-501.85257797,0.00021758,2]
[336978233,1725272836176,-519.15743779,0.00021858,2]
[336978234,1725272844095,-437.61926821,0.00021858,2]
[336978235,1725272844116,-1674.1657673,0.00021924,2]
[336978236,1725272845133,-283.45577886,0.00021924,2]
[336978238,1725272851155,-170.78758863,0.00021924,2]
[336978245,1725272951101,-257.97241971,0.00021924,2]
[336978246,1725272951124,-182.2520564,0.00022348,2]
[336978247,1725272951147,-163.6996684,0.00022914,2]
[336978248,1725272951170,-300.0,0.00023523,2]
[336978249,1725272951192,-300.0,0.00023523,2]
[336978250,1725272951216,-690.8178,0.00023524,2]
[336978251,1725272951236,-251.0,0.00023524,2]
[336978252,1725272951258,-933.6322081,0.00023524,2]
[336978253,1725272951278,-2290.7442871,0.00023524,2]
[336978254,1725272951301,-3000.0,0.00023524,2]
[336978255,1725272951323,-241.0929424,0.00023524,2]
[336978256,1725272951348,-22674.22086759,0.00023524,2]
[336978257,1725272953018,-1951.89299541,0.00023524,2]
[336978258,1725272953045,-2877.07318661,0.000236,2]
[336978259,1725272972222,-250.0,0.000237,2]
[336978260,1725272972246,-13897.2637456,0.00023712,2]
[336978261,1725272972268,-250.0,0.00023765,2]
[336978262,1725272972293,-250.0,0.0002383,2]
[336978263,1725272972322,-286.774109,0.00023836,2]
[336978264,1725272972343,-166.58692621,0.00023895,2]
[336978324,1725273038856,-83.41307379,0.00023895,2]
[336978326,1725273038867,-207.9928919,0.00023936,2]
[336978327,1725273038877,-250.0,0.0002396,2]
[336978328,1725273038887,-177.6880762,0.00023978,2]
[336978329,1725273038896,-250.0,0.00024025,2]
[336978330,1725273038907,-250.0,0.0002409,2]
[336978331,1725273038919,-250.0,0.00024155,2]
[336978332,1725273038930,-250.0,0.0002422,2]
[336978333,1725273039082,-250.0,0.00024285,2]
[336978334,1725273039092,-150.55449172,0.00024329,2]
[336978335,1725273039108,-250.0,0.0002435,2]
[336978336,1725273039118,-250.0,0.00024415,2]
[336978337,1725273039127,-250.0,0.0002448,2]
[336978338,1725273039136,-250.0,0.00024545,2]
[336978339,1725273039146,-922.47799401,0.00024557,2]
[336978340,1725273039155,-250.0,0.0002461,2]
[336978341,1725273039164,-201.18317708,0.00024647,3]
[336978342,1725273039174,-0.420022,0.00024649,7]
[336978343,1725273039184,-300.0,0.00024656,2]
[336978344,1725273039193,-300.0,0.00024656,2]
[336978345,1725273039203,-7606.92100385,0.00024657,11]
[336978346,1725273039215,-913.79145382,0.00024657,11]
[336978347,1725273039229,-13738.87451281,0.00024657,11]
[336978348,1725273039238,-14732.28920226,0.00024657,11]
[336978349,1725273039250,-4434.58746965,0.00024657,11]
[336978350,1725273039261,-1184.15235348,0.00024657,11]
[336978351,1725273039271,-500.0,0.00024657,2]
[336978352,1725273039280,-500.0,0.00024657,2]
[336978353,1725273039290,-500.0,0.00024657,2]
[336978354,1725273039300,-500.0,0.00024657,2]
[336978355,1725273039310,-500.0,0.00024657,2]
[336978356,1725273039321,-500.0,0.00024657,2]
[336978357,1725273039330,-500.0,0.00024657,2]
[336978358,1725273039342,-500.0,0.00024657,2]
[336978359,1725273039358,-500.0,0.00024657,2]
[336978360,1725273039367,-500.0,0.00024657,2]
[336978361,1725273039377,-500.0,0.00024657,2]
[336978362,1725273039386,-396.49063788,0.00024657,2]
[336978363,1725273039396,-500.0,0.00024657,2]
[336978364,1725273039406,-505.22330456,0.00024657,2]
[336978365,1725273039415,-270.84558866,0.00024657,2]
[336978366,1725273039426,-500.0,0.00024657,2]
[336978367,1725273039436,-500.0,0.00024657,2]
[336978368,1725273039445,-500.0,0.00024657,2]
[336978369,1725273039454,-500.82338603,0.00024657,2]
[336978370,1725273039463,-500.0,0.00024657,2]
[336978371,1725273039472,-504.81597529,0.00024657,2]
[336978372,1725273039486,-500.0,0.00024657,2]
[336978373,1725273039497,-500.0,0.00024657,2]
[336978374,1725273039508,-500.0,0.00024657,2]
[336978375,1725273039518,-496.45500936,0.00024657,2]
[336978376,1725273039528,-191.55075328,0.00024657,2]
[336978377,1725273039538,-500.0,0.00024657,2]
[336978378,1725273039547,-500.0,0.00024657,2]
[336978379,1725273039558,-500.0,0.00024657,2]
[336978380,1725273039568,-508.83857452,0.00024657,2]
[336978381,1725273039577,-500.0,0.00024657,2]
[336978382,1725273039587,-500.0,0.00024657,2]
[336978383,1725273039599,-500.0,0.00024657,2]
[336978384,1725273039609,-500.0,0.00024657,2]
[336978385,1725273039618,-500.0,0.00024657,2]
[336978386,1725273039628,-500.0,0.00024657,2]
[336978387,1725273039638,-500.0,0.00024657,2]
[336978388,1725273039648,-501.30631589,0.00024657,2]
[336978389,1725273039658,-206.73513008,0.00024657,2]
[336978390,1725273039668,-500.0,0.00024657,2]
[336978391,1725273039677,-500.0,0.00024657,2]
[336978392,1725273039687,-500.0,0.00024657,2]
[336978393,1725273039696,-502.22836156,0.00024657,2]
[336978394,1725273039706,-500.0,0.00024657,2]
[336978395,1725273039716,-500.0,0.00024657,2]
[336978396,1725273039725,-501.46132272,0.00024657,2]
[336978397,1725273039735,-500.0,0.00024657,2]
[336978398,1725273039745,-500.0,0.00024657,2]
[336978399,1725273039755,-500.0,0.00024657,2]
[336978400,1725273039765,-500.0,0.00024657,2]
[336978401,1725273039775,-500.0,0.00024657,2]
[336978402,1725273039784,-500.0,0.00024657,2]
[336978403,1725273039793,-500.0,0.00024657,2]
[336978404,1725273039803,-500.0,0.00024657,2]
[336978405,1725273039812,-500.0,0.00024657,2]
[336978406,1725273039821,-500.43665897,0.00024657,2]
[336978407,1725273039831,-500.0,0.00024657,2]
[336978408,1725273039841,-500.0,0.00024657,2]
[336978409,1725273039852,-500.0,0.00024657,2]
[336978410,1725273039862,-500.0,0.00024657,2]
[336978411,1725273039872,-500.0,0.00024657,2]
[336978412,1725273039882,-500.0,0.00024657,2]
[336978413,1725273039891,-501.57384797,0.00024657,2]
[336978414,1725273039901,-495.81738523,0.00024657,2]
[336978415,1725273039910,-500.0,0.00024657,2]
[336978416,1725273039920,-500.0,0.00024657,2]
[336978417,1725273039929,-500.0,0.00024657,2]
[336978418,1725273039938,-500.0,0.00024657,2]
[336978419,1725273039948,-500.0,0.00024657,2]
[336978420,1725273039958,-500.0,0.00024657,2]
[336978421,1725273039970,-500.0,0.00024657,2]
[336978422,1725273039979,-500.0,0.00024657,2]
[336978423,1725273039989,-500.0,0.00024657,2]
[336978424,1725273039999,-500.0,0.00024657,2]
[336978425,1725273040008,-505.34313823,0.00024657,2]
[336978426,1725273040018,-500.0,0.00024657,2]
[336978427,1725273040028,-457.49400856,0.00024657,2]
[336978428,1725273040037,-500.0,0.00024657,2]
[336978429,1725273040046,-500.0,0.00024657,2]
[336978430,1725273040056,-500.0,0.00024657,2]
[336978431,1725273040065,-500.0,0.00024657,2]
[336978432,1725273040075,-500.0,0.00024657,2]
[336978433,1725273040085,-500.0,0.00024657,2]
[336978434,1725273040096,-500.0,0.00024657,2]
[336978435,1725273040106,-500.0,0.00024657,2]
[336978436,1725273040116,-500.0,0.00024657,2]
[336978437,1725273040125,-500.0,0.00024657,2]
[336978438,1725273040135,-1240.32,0.00024657,2]
[336978439,1725273040144,-500.0,0.00024657,2]
[336978440,1725273040153,-472.65885424,0.00024657,2]
[336978441,1725273040172,-27.34114576,0.00024657,2]
[336978442,1725273040182,-520.54958863,0.00024657,2]
[336978443,1725273040192,-580.34,0.00024657,2]
[336978444,1725273040202,-500.0,0.00024657,2]
[336978445,1725273040211,-500.0,0.00024657,2]
[336978446,1725273040221,-500.0,0.00024657,2]
[336978447,1725273040233,-500.0,0.00024657,2]
[336978448,1725273040242,-500.0,0.00024657,2]
[336978449,1725273040254,-500.0,0.00024657,2]
[336978450,1725273040263,-500.0,0.00024657,2]
[336978451,1725273040274,-500.0,0.00024657,2]
[336978452,1725273040283,-502.30849553,0.00024657,2]
[336978453,1725273040293,-500.0,0.00024657,2]
[336978454,1725273040304,-500.0,0.00024657,2]
[336978455,1725273040313,-500.0,0.00024657,2]
[336978456,1725273040335,-500.0,0.00024657,2]
[336978457,1725273040358,-500.0,0.00024657,2]
[336978458,1725273040380,-854.67,0.00024657,2]
[336978459,1725273040401,-337.88855092,0.00024657,2]
[336978460,1725273040423,-500.0,0.00024657,2]
[336978461,1725273040447,-500.0,0.00024657,2]
[336978462,1725273040469,-559.99,0.00024657,2]
[336978463,1725273040491,-500.0,0.00024657,2]
[336978464,1725273040512,-500.0,0.00024657,2]
[336978465,1725273040535,-510.17,0.00024657,2]
[336978466,1725273040555,-500.0,0.00024657,2]
[336978467,1725273040565,-500.0,0.00024657,2]
[336978468,1725273040575,-500.0,0.00024657,2]
[336978469,1725273040585,-200.99711836,0.00024657,2]
[336978470,1725273040595,-500.0,0.00024657,2]
[336978471,1725273040605,-500.0,0.00024657,2]
[336978472,1725273040615,-500.0,0.00024657,2]
[336978473,1725273040624,-500.0,0.00024657,2]
[336978474,1725273040634,-500.0,0.00024657,2]
[336978475,1725273040644,-500.0,0.00024657,2]
[336978476,1725273040654,-434.09901306,0.00024657,2]
[336978477,1725273040663,-613.18,0.00024657,2]
[336978478,1725273040674,-500.0,0.00024657,2]
[336978480,1725273040684,-500.0,0.00024657,2]
[336978482,1725273040694,-500.0,0.00024657,2]
[336978483,1725273040703,-500.0,0.00024657,2]
[336978484,1725273040713,-500.14791411,0.00024657,2]
[336978485,1725273040722,-500.0,0.00024657,2]
[336978486,1725273040732,-500.75241873,0.00024657,2]
[336978487,1725273040742,-151.0,0.00024657,7]
[336978488,1725273040751,-958.07,0.00024657,2]
[336978489,1725273040762,-500.0,0.00024657,2]
[336978490,1725273040771,-500.0,0.00024657,2]
[336978491,1725273040781,-735.99,0.00024657,2]
[336978492,1725273040791,-500.0,0.00024657,2]
[336978493,1725273040801,-500.0,0.00024657,2]
[336978494,1725273040811,-429.83534094,0.00024657,2]
[336978496,1725273040821,-500.0,0.00024657,2]
[336978497,1725273040830,-500.0,0.00024657,2]
[336978498,1725273040840,-652.66,0.00024657,2]
[336978499,1725273040851,-500.0,0.00024657,2]
[336978500,1725273040861,-500.0,0.00024657,2]
[336978501,1725273040870,-500.0,0.00024657,2]
[336978502,1725273040880,-687.13,0.00024657,2]
[336978503,1725273040890,-503.22517086,0.00024657,2]
[336978504,1725273040899,-500.0,0.00024657,2]
[336978505,1725273040908,-512.51,0.00024657,2]
[336978506,1725273040918,-500.0,0.00024657,2]
[336978507,1725273040928,-500.0,0.00024657,2]
[336978508,1725273040938,-395.05004339,0.00024657,2]
[336978509,1725273040947,-500.0,0.00024657,2]
[336978510,1725273040957,-500.0,0.00024657,2]
[336978511,1725273040966,-500.0,0.00024657,2]
[336978512,1725273040975,-500.0,0.00024657,2]
[336978513,1725273040984,-500.0,0.00024657,2]
[336978514,1725273040994,-500.0,0.00024657,2]
[336978515,1725273041003,-500.0,0.00024657,2]
[336978516,1725273041013,-500.0,0.00024657,2]
[336978517,1725273041023,-502.05100841,0.00024657,2]
[336978518,1725273041032,-500.0,0.00024657,2]
[336978519,1725273041042,-500.0,0.00024657,2]
[336978520,1725273041051,-500.0,0.00024657,2]
[336978521,1725273041061,-500.0,0.00024657,2]
[336978522,1725273041070,-500.0,0.00024657,2]
[336978523,1725273041080,-383.56486565,0.00024657,2]
[336978525,1725273041089,-606.59323964,0.00024657,2]
[336978526,1725273041099,-902.08,0.00024657,2]
[336978527,1725273041109,-500.0,0.00024657,2]
[336978528,1725273041119,-423.56740057,0.00024657,2]
[336978529,1725273041128,-240.031036,0.00024657,7]
[336978530,1725273041137,-500.0,0.00024657,2]
[336978531,1725273041147,-500.0,0.00024657,2]
[336978532,1725273041157,-240.031036,0.00024657,7]
[336978533,1725273041167,-500.0,0.00024657,2]
[336978534,1725273041176,-500.0,0.00024657,2]
[336978535,1725273041186,-500.0,0.00024657,2]
[336978536,1725273041196,-400.88635098,0.00024657,2]
[336978537,1725273041205,-459.19660786,0.00024657,2]
[336978538,1725273041215,-500.0,0.00024657,2]
[336978539,1725273041224,-500.0,0.00024657,2]
[336978540,1725273041236,-500.0,0.00024657,2]
[336978541,1725273041246,-1014.85311854,0.00024657,2]
[336978542,1725273041255,-500.0,0.00024657,2]
[336978543,1725273041264,-500.0,0.00024657,2]
[336978544,1725273041274,-500.0,0.00024657,2]
[336978545,1725273041283,-500.0,0.00024657,2]
[336978546,1725273041293,-500.0,0.00024657,2]
[336978547,1725273041303,-905.2,0.00024657,2]
[336978548,1725273041314,-500.0,0.00024657,2]
[336978549,1725273041325,-500.0,0.00024657,2]
[336978550,1725273041335,-603.00000002,0.00024657,2]